[Event "Titled Tuesday Blitz April 18 Early 2023"]
[White "Osiecki, Stanislaw"]
[Black "Dwilewicz, Katarzyna"]
[WhiteFideId "1102990"]
[BlackFideId "1148486"]
[WhiteElo "2088"]
[BlackElo "2065"]
[Result "0-1"]
[Round "03"]
[TimeControl "180+2"]
[Date "2023.04.18"]
[WhiteClock "0:00:01"]
[BlackClock "0:00:03"]

1. e4 {[%clk 0:02:58]}  c5 {[%clk 0:02:59]} 2. c3 {[%clk 0:02:54]}  d5 {[%clk 0:02:58]} 3. e5 {[%clk 0:02:53]}  d4 {[%clk 0:02:53]} 4. Bc4 {[%clk 0:02:48]}  Nc6 {[%clk 0:02:48]} 5. Nf3 {[%clk 0:02:47]}  Nh6 {[%clk 0:02:15]} 6. d3 {[%clk 0:02:44]}  Bg4 {[%clk 0:02:09]} 7. Bxh6 {[%clk 0:02:40]}  gxh6 {[%clk 0:02:08]} 8. Qb3 {[%clk 0:02:34]}  e6 {[%clk 0:02:06]} 9. Qxb7 {[%clk 0:02:31]}  Rc8 {[%clk 0:01:36]} 10. Bb5 {[%clk 0:02:13]}  Qc7 {[%clk 0:01:29]} 11. Bxc6+ {[%clk 0:01:59]}  Qxc6 {[%clk 0:01:28]} 12. Qxc6+ {[%clk 0:01:59]}  Rxc6 {[%clk 0:01:28]} 13. Nbd2 {[%clk 0:01:57]}  dxc3 {[%clk 0:01:22]} 14. bxc3 {[%clk 0:01:57]}  Bg7 {[%clk 0:01:23]} 15. O-O {[%clk 0:01:55]}  Ke7 {[%clk 0:01:20]} 16. Rab1 {[%clk 0:01:41]}  Rc7 {[%clk 0:01:16]} 17. d4 {[%clk 0:01:33]}  Rd8 {[%clk 0:01:13]} 18. Rb3 {[%clk 0:01:19]}  Bf5 {[%clk 0:01:07]} 19. h3 {[%clk 0:01:10]}  Bc2 {[%clk 0:01:03]} 20. Ra3 {[%clk 0:01:06]}  Bd3 {[%clk 0:00:59]} 21. Re1 {[%clk 0:00:57]}  Rb8 {[%clk 0:00:58]} 22. dxc5 {[%clk 0:00:56]}  Rb2 {[%clk 0:00:52]} 23. Nb3 {[%clk 0:00:53]}  Bc4 {[%clk 0:00:45]} 24. Nfd4 {[%clk 0:00:51]}  h5 {[%clk 0:00:27]} 25. Ra4 {[%clk 0:00:47]}  Bd5 {[%clk 0:00:22]} 26. Re2 {[%clk 0:00:36]}  Rb1+ {[%clk 0:00:18]} 27. Kh2 {[%clk 0:00:36]}  Kd7 {[%clk 0:00:14]} 28. Nb5 {[%clk 0:00:31]}  Rb7 {[%clk 0:00:12]} 29. Nd6 {[%clk 0:00:30]}  Bxb3 {[%clk 0:00:09]} 30. axb3 {[%clk 0:00:28]}  R7xb3 {[%clk 0:00:10]} 31. Rxa7+ {[%clk 0:00:27]}  Kc6 {[%clk 0:00:10]} 32. Rxf7 {[%clk 0:00:24]}  Bh6 {[%clk 0:00:11]} 33. Rxh7 {[%clk 0:00:19]}  Bc1 {[%clk 0:00:06]} 34. Rxh5 {[%clk 0:00:16]}  Kxc5 {[%clk 0:00:06]} 35. Ne4+ {[%clk 0:00:14]}  Kd5 {[%clk 0:00:05]} 36. Nf6+ {[%clk 0:00:14]}  Kc6 {[%clk 0:00:06]} 37. c4 {[%clk 0:00:10]}  Bb2 {[%clk 0:00:05]} 38. g3 {[%clk 0:00:08]}  Bd4 {[%clk 0:00:05]} 39. Kg2 {[%clk 0:00:07]}  Rc1 {[%clk 0:00:05]} 40. Rh4 {[%clk 0:00:07]}  Bc5 {[%clk 0:00:04]} 41. Ne4 {[%clk 0:00:06]}  Bb6 {[%clk 0:00:03]} 42. c5 {[%clk 0:00:05]}  Bc7 {[%clk 0:00:03]} 43. g4 {[%clk 0:00:02]}  Bxe5 {[%clk 0:00:03]} 44. Rh5 {[%clk 0:00:01]}  Bd4 {[%clk 0:00:03]} 45. Rh6 {[%clk 0:00:01]}  Kd5 {[%clk 0:00:02]} 46. Rh5+ {[%clk 0:00:01]}  Kc6 {[%clk 0:00:02]} 47. Rh6 {[%clk 0:00:02]}  Kd5 {[%clk 0:00:02]} 48. Rh5+ {[%clk 0:00:02]}  e5 {[%clk 0:00:03]} 49. g5 {[%clk 0:00:02]}  Rbb1 {[%clk 0:00:02]} 50. g6 {[%clk 0:00:03]}  Rg1+ {[%clk 0:00:02]} 51. Kf3 {[%clk 0:00:02]}  Rb3+ {[%clk 0:00:01]} 52. Re3 {[%clk 0:00:01]}  Bxe3 {[%clk 0:00:02]} 53. fxe3 {[%clk 0:00:02]}  Rxg6 {[%clk 0:00:02]} 54. Ng5 {[%clk 0:00:01]}  Rg7 {[%clk 0:00:03]} 0-1


[Site "https://www.chess.com"]

[Event "Titled Tuesday Blitz April 18 Early 2023"]
[White "Vargas, Mauricio"]
[Black "Derichs, Roger"]
[WhiteFideId "4404572"]
[BlackFideId "4630076"]
[WhiteElo "1998"]
[BlackElo "2332"]
[Result "0-1"]
[Round "03"]
[TimeControl "180+2"]
[Date "2023.04.18"]
[WhiteClock "0:00:03"]
[BlackClock "0:01:13"]

1. e4 {[%clk 0:02:58]}  e6 {[%clk 0:03:00]} 2. f4 {[%clk 0:02:54]}  d5 {[%clk 0:02:59]} 3. e5 {[%clk 0:02:54]}  c5 {[%clk 0:02:59]} 4. Nf3 {[%clk 0:02:55]}  Nc6 {[%clk 0:02:59]} 5. Bb5 {[%clk 0:02:53]}  Bd7 {[%clk 0:02:58]} 6. Bxc6 {[%clk 0:02:52]}  Bxc6 {[%clk 0:02:58]} 7. O-O {[%clk 0:02:51]}  Ne7 {[%clk 0:02:46]} 8. d3 {[%clk 0:02:51]}  Nf5 {[%clk 0:02:43]} 9. Qe1 {[%clk 0:02:51]}  h5 {[%clk 0:02:41]} 10. c3 {[%clk 0:02:51]}  d4 {[%clk 0:02:39]} 11. c4 {[%clk 0:02:26]}  Be7 {[%clk 0:02:37]} 12. Na3 {[%clk 0:02:06]}  a6 {[%clk 0:02:34]} 13. Nc2 {[%clk 0:02:05]}  Qc7 {[%clk 0:02:31]} 14. Nd2 {[%clk 0:02:02]}  b5 {[%clk 0:02:29]} 15. b3 {[%clk 0:01:57]}  Qb7 {[%clk 0:02:20]} 16. Ne4 {[%clk 0:01:49]}  h4 {[%clk 0:02:14]} 17. h3 {[%clk 0:01:35]}  O-O {[%clk 0:02:05]} 18. Bd2 {[%clk 0:01:25]}  Rab8 {[%clk 0:02:01]} 19. Qe2 {[%clk 0:01:16]}  bxc4 {[%clk 0:01:51]} 20. dxc4 {[%clk 0:01:09]}  Bxe4 {[%clk 0:01:50]} 21. Ne1 {[%clk 0:01:02]}  Ng3 {[%clk 0:01:39]} 22. Qg4 {[%clk 0:00:56]}  Nxf1 {[%clk 0:01:37]} 23. Kxf1 {[%clk 0:00:56]}  d3 {[%clk 0:01:29]} 24. f5 {[%clk 0:00:47]}  Bxf5 {[%clk 0:01:27]} 25. Qf4 {[%clk 0:00:46]}  Qe4 {[%clk 0:01:25]} 26. Nf3 {[%clk 0:00:40]}  Qxf4 {[%clk 0:01:23]} 27. Bxf4 {[%clk 0:00:40]}  a5 {[%clk 0:01:23]} 28. Rd1 {[%clk 0:00:38]}  a4 {[%clk 0:01:23]} 29. bxa4 {[%clk 0:00:22]}  Rb4 {[%clk 0:01:23]} 30. Bg5 {[%clk 0:00:19]}  Bxg5 {[%clk 0:01:19]} 31. Nxg5 {[%clk 0:00:19]}  Rxa4 {[%clk 0:01:19]} 32. Rd2 {[%clk 0:00:17]}  Rfa8 {[%clk 0:01:18]} 33. Nf3 {[%clk 0:00:16]}  Rxa2 {[%clk 0:01:17]} 34. Rxa2 {[%clk 0:00:14]}  Rxa2 {[%clk 0:01:17]} 35. Nxh4 {[%clk 0:00:15]}  Be4 {[%clk 0:01:17]} 36. Nf3 {[%clk 0:00:11]}  Bxf3 {[%clk 0:01:16]} 37. gxf3 {[%clk 0:00:12]}  Re2 {[%clk 0:01:16]} 38. f4 {[%clk 0:00:10]}  f6 {[%clk 0:01:15]} 39. exf6 {[%clk 0:00:08]}  gxf6 {[%clk 0:01:15]} 40. h4 {[%clk 0:00:09]}  f5 {[%clk 0:01:15]} 41. h5 {[%clk 0:00:09]}  Re4 {[%clk 0:01:15]} 42. Kf2 {[%clk 0:00:08]}  d2 {[%clk 0:01:15]} 43. h6 {[%clk 0:00:07]}  d1=Q {[%clk 0:01:15]} 44. h7+ {[%clk 0:00:08]}  Kxh7 {[%clk 0:01:14]} 45. Kg3 {[%clk 0:00:06]}  Qg4+ {[%clk 0:01:13]} 46. Kf2 {[%clk 0:00:05]}  Re2+ {[%clk 0:01:13]} 47. Kf1 {[%clk 0:00:03]}  Qg2# {[%clk 0:01:13]} 0-1


[Site "https://www.chess.com"]

[Event "Titled Tuesday Blitz April 18 Early 2023"]
[White "Zhigalko_Sergei"]
[Black "Nakamura, Hikaru"]
[BlackFideId "2016192"]
[WhiteElo "2928"]
[BlackElo "2885"]
[Result "0-1"]
[Round "04"]
[TimeControl "180+2"]
[Date "2023.04.18"]
[WhiteClock "0:00:03"]
[BlackClock "0:00:15"]

1. e4 {[%clk 0:03:00]}  e5 {[%clk 0:02:58]} 2. Nf3 {[%clk 0:03:01]}  Nc6 {[%clk 0:02:59]} 3. Bc4 {[%clk 0:02:59]}  Nf6 {[%clk 0:02:58]} 4. d3 {[%clk 0:03:00]}  Bc5 {[%clk 0:02:58]} 5. O-O {[%clk 0:03:00]}  d6 {[%clk 0:02:59]} 6. Nbd2 {[%clk 0:03:00]}  a6 {[%clk 0:02:58]} 7. c3 {[%clk 0:03:00]}  O-O {[%clk 0:02:57]} 8. Bb3 {[%clk 0:03:01]}  h6 {[%clk 0:02:55]} 9. Re1 {[%clk 0:03:00]}  Re8 {[%clk 0:02:55]} 10. Nf1 {[%clk 0:02:58]}  Be6 {[%clk 0:02:55]} 11. Ng3 {[%clk 0:02:52]}  d5 {[%clk 0:02:46]} 12. exd5 {[%clk 0:02:47]}  Bxd5 {[%clk 0:02:47]} 13. Be3 {[%clk 0:02:47]}  Bf8 {[%clk 0:02:33]} 14. d4 {[%clk 0:02:35]}  exd4 {[%clk 0:02:05]} 15. Nxd4 {[%clk 0:02:32]}  Na5 {[%clk 0:02:05]} 16. Bc2 {[%clk 0:01:43]}  Nc4 {[%clk 0:02:02]} 17. Bc1 {[%clk 0:01:43]}  c5 {[%clk 0:01:47]} 18. Ndf5 {[%clk 0:01:31]}  Ne5 {[%clk 0:01:36]} 19. Bf4 {[%clk 0:01:15]}  Ng6 {[%clk 0:01:35]} 20. Be3 {[%clk 0:01:15]}  Qc7 {[%clk 0:01:31]} 21. Nh5 {[%clk 0:01:10]}  Nxh5 {[%clk 0:01:28]} 22. Qxh5 {[%clk 0:01:10]}  Be4 {[%clk 0:01:14]} 23. Bxe4 {[%clk 0:00:47]}  Rxe4 {[%clk 0:01:15]} 24. Rad1 {[%clk 0:00:41]}  Rae8 {[%clk 0:01:12]} 25. Qf3 {[%clk 0:00:38]}  Qc6 {[%clk 0:01:11]} 26. h3 {[%clk 0:00:34]}  R8e5 {[%clk 0:00:51]} 27. Ng3 {[%clk 0:00:32]}  Nh4 {[%clk 0:00:51]} 28. Qe2 {[%clk 0:00:27]}  Nxg2 {[%clk 0:00:51]} 29. Nxe4 {[%clk 0:00:12]}  Nxe1 {[%clk 0:00:51]} 30. Nf6+ {[%clk 0:00:02]}  Qxf6 {[%clk 0:00:49]} 31. Rxe1 {[%clk 0:00:03]}  Qe6 {[%clk 0:00:49]} 32. Qg4 {[%clk 0:00:03]}  Qxa2 {[%clk 0:00:48]} 33. Rd1 {[%clk 0:00:02]}  Re6 {[%clk 0:00:46]} 34. Kh1 {[%clk 0:00:02]}  Qxb2 {[%clk 0:00:34]} 35. Rd8 {[%clk 0:00:02]}  Qxc3 {[%clk 0:00:34]} 36. Qf5 {[%clk 0:00:02]}  Qe1+ {[%clk 0:00:25]} 37. Kg2 {[%clk 0:00:03]}  b6 {[%clk 0:00:18]} 38. h4 {[%clk 0:00:01]}  Rg6+ {[%clk 0:00:18]} 39. Bg5 {[%clk 0:00:01]}  hxg5 {[%clk 0:00:15]} 40. h5 {[%clk 0:00:02]}  Re6 {[%clk 0:00:14]} 41. h6 {[%clk 0:00:02]}  gxh6 {[%clk 0:00:14]} 42. Rd7 {[%clk 0:00:02]}  Qe4+ {[%clk 0:00:14]} 43. Qxe4 {[%clk 0:00:02]}  Rxe4 {[%clk 0:00:15]} 44. Re7 {[%clk 0:00:03]}  Rxe7 {[%clk 0:00:15]} 0-1


[Site "https://www.chess.com"]

[Event "Titled Tuesday Blitz April 18 Early 2023"]
[White "Andreikin, Dmitry"]
[Black "Pichot, Alan"]
[WhiteFideId "4158814"]
[BlackFideId "110973"]
[WhiteElo "2736"]
[BlackElo "2573"]
[Result "1-0"]
[Round "04"]
[TimeControl "180+2"]
[Date "2023.04.18"]
[WhiteClock "0:00:09"]
[BlackClock "0:00:02"]

1. Nf3 {[%clk 0:03:00]}  Nf6 {[%clk 0:02:57]} 2. c4 {[%clk 0:03:00]}  e6 {[%clk 0:02:57]} 3. g3 {[%clk 0:02:56]}  d5 {[%clk 0:02:57]} 4. Bg2 {[%clk 0:02:57]}  d4 {[%clk 0:02:51]} 5. O-O {[%clk 0:02:57]}  c5 {[%clk 0:02:52]} 6. e3 {[%clk 0:02:47]}  Nc6 {[%clk 0:02:52]} 7. exd4 {[%clk 0:02:47]}  cxd4 {[%clk 0:02:53]} 8. d3 {[%clk 0:02:48]}  h6 {[%clk 0:02:53]} 9. Re1 {[%clk 0:02:43]}  Nd7 {[%clk 0:02:51]} 10. Nbd2 {[%clk 0:02:33]}  Be7 {[%clk 0:02:36]} 11. Ne4 {[%clk 0:01:56]}  O-O {[%clk 0:02:34]} 12. a3 {[%clk 0:01:54]}  a5 {[%clk 0:02:34]} 13. Rb1 {[%clk 0:01:54]}  e5 {[%clk 0:01:57]} 14. g4 {[%clk 0:01:46]}  Qc7 {[%clk 0:01:45]} 15. h3 {[%clk 0:01:38]}  a4 {[%clk 0:01:43]} 16. b4 {[%clk 0:01:33]}  axb3 {[%clk 0:01:43]} 17. Rxb3 {[%clk 0:01:34]}  Nd8 {[%clk 0:01:42]} 18. g5 {[%clk 0:01:26]}  h5 {[%clk 0:01:37]} 19. Ng3 {[%clk 0:01:17]}  g6 {[%clk 0:01:36]} 20. Nxd4 {[%clk 0:01:16]}  exd4 {[%clk 0:00:47]} 21. Rxe7 {[%clk 0:01:16]}  Ne6 {[%clk 0:00:48]} 22. Nxh5 {[%clk 0:00:45]}  gxh5 {[%clk 0:00:36]} 23. g6 {[%clk 0:00:46]}  Qe5 {[%clk 0:00:22]} 24. Bh6 {[%clk 0:00:36]}  Qf6 {[%clk 0:00:14]} 25. gxf7+ {[%clk 0:00:18]}  Rxf7 {[%clk 0:00:12]} 26. Re8+ {[%clk 0:00:18]}  Ndf8 {[%clk 0:00:11]} 27. Qxh5 {[%clk 0:00:14]}  Qxf2+ {[%clk 0:00:07]} 28. Kh1 {[%clk 0:00:15]}  Nf4 {[%clk 0:00:02]} 29. Rxf8+ {[%clk 0:00:12]}  Rxf8 {[%clk 0:00:01]} 30. Qg5+ {[%clk 0:00:12]}  Kf7 {[%clk 0:00:02]} 31. Qg7+ {[%clk 0:00:12]}  Ke8 {[%clk 0:00:02]} 32. Qxf8+ {[%clk 0:00:12]}  Kd7 {[%clk 0:00:02]} 33. Qf7+ {[%clk 0:00:09]} 1-0


[Site "https://www.chess.com"]

[Event "Titled Tuesday Blitz April 18 Early 2023"]
[White "Bachmann, Axel"]
[Black "Korobov, Anton"]
[WhiteFideId "3700488"]
[BlackFideId "14105730"]
[WhiteElo "2605"]
[BlackElo "2638"]
[Result "0-1"]
[Round "04"]
[TimeControl "180+2"]
[Date "2023.04.18"]
[WhiteClock "0:00:04"]
[BlackClock "0:00:04"]

1. e4 {[%clk 0:03:00]}  c5 {[%clk 0:02:59]} 2. Nc3 {[%clk 0:02:59]}  Nc6 {[%clk 0:02:59]} 3. g3 {[%clk 0:02:58]}  g6 {[%clk 0:02:58]} 4. d3 {[%clk 0:02:58]}  Bg7 {[%clk 0:02:58]} 5. Be3 {[%clk 0:02:58]}  d6 {[%clk 0:02:57]} 6. Qd2 {[%clk 0:02:58]}  b5 {[%clk 0:02:54]} 7. Nxb5 {[%clk 0:02:21]}  Rb8 {[%clk 0:02:31]} 8. c4 {[%clk 0:02:21]}  a6 {[%clk 0:02:29]} 9. Nc3 {[%clk 0:02:21]}  Qa5 {[%clk 0:02:29]} 10. Nge2 {[%clk 0:02:19]}  Bg4 {[%clk 0:02:27]} 11. Bg2 {[%clk 0:02:09]}  Bxe2 {[%clk 0:02:20]} 12. Kxe2 {[%clk 0:02:10]}  Nd4+ {[%clk 0:02:02]} 13. Bxd4 {[%clk 0:02:05]}  Bxd4 {[%clk 0:02:03]} 14. Rhc1 {[%clk 0:01:41]}  Nf6 {[%clk 0:02:00]} 15. Nd1 {[%clk 0:01:27]}  Qc7 {[%clk 0:02:00]} 16. Rab1 {[%clk 0:01:21]}  h5 {[%clk 0:02:00]} 17. h3 {[%clk 0:01:18]}  h4 {[%clk 0:01:41]} 18. g4 {[%clk 0:01:18]}  Nd7 {[%clk 0:01:31]} 19. Ne3 {[%clk 0:01:17]}  e6 {[%clk 0:01:31]} 20. f4 {[%clk 0:01:04]}  O-O {[%clk 0:01:25]} 21. Rf1 {[%clk 0:01:03]}  a5 {[%clk 0:01:20]} 22. b3 {[%clk 0:00:53]}  a4 {[%clk 0:01:20]} 23. Nc2 {[%clk 0:00:50]}  Bg7 {[%clk 0:01:17]} 24. bxa4 {[%clk 0:00:39]}  Nb6 {[%clk 0:01:13]} 25. Qa5 {[%clk 0:00:20]}  Qc6 {[%clk 0:01:13]} 26. Rb5 {[%clk 0:00:16]}  d5 {[%clk 0:00:56]} 27. Rfb1 {[%clk 0:00:15]}  dxc4 {[%clk 0:00:51]} 28. Rxb6 {[%clk 0:00:16]}  cxd3+ {[%clk 0:00:52]} 29. Kxd3 {[%clk 0:00:16]}  Qd7+ {[%clk 0:00:52]} 30. Ke2 {[%clk 0:00:14]}  Rbd8 {[%clk 0:00:45]} 31. Ne1 {[%clk 0:00:10]}  Qd4 {[%clk 0:00:41]} 32. Kf1 {[%clk 0:00:03]}  Qe3 {[%clk 0:00:38]} 33. R6b3 {[%clk 0:00:03]}  Qxf4+ {[%clk 0:00:36]} 34. Rf3 {[%clk 0:00:04]}  Qxe4 {[%clk 0:00:36]} 35. Rc1 {[%clk 0:00:02]}  Bd4 {[%clk 0:00:30]} 36. Qb5 {[%clk 0:00:02]}  Rb8 {[%clk 0:00:24]} 37. Qe2 {[%clk 0:00:03]}  Qd5 {[%clk 0:00:24]} 38. Nd3 {[%clk 0:00:03]}  Qd6 {[%clk 0:00:21]} 39. Nf4 {[%clk 0:00:03]}  Rb2 {[%clk 0:00:20]} 40. Qe4 {[%clk 0:00:01]}  Qa6+ {[%clk 0:00:19]} 41. Ne2 {[%clk 0:00:02]}  Rxa2 {[%clk 0:00:18]} 42. Qd3 {[%clk 0:00:02]}  Qb6 {[%clk 0:00:13]} 43. Nxd4 {[%clk 0:00:03]}  cxd4 {[%clk 0:00:13]} 44. Kg1 {[%clk 0:00:03]}  Qb2 {[%clk 0:00:13]} 45. Qf1 {[%clk 0:00:01]}  Rxa4 {[%clk 0:00:12]} 46. Rf2 {[%clk 0:00:01]}  Qb6 {[%clk 0:00:12]} 47. Rd1 {[%clk 0:00:02]}  d3 {[%clk 0:00:07]} 48. Kh1 {[%clk 0:00:03]}  Rd4 {[%clk 0:00:06]} 49. Rf3 {[%clk 0:00:03]}  d2 {[%clk 0:00:05]} 50. Qf2 {[%clk 0:00:04]}  Qd6 {[%clk 0:00:04]} 51. Qe2 {[%clk 0:00:02]}  Rc8 {[%clk 0:00:03]} 52. Qf2 {[%clk 0:00:02]}  Rc1 {[%clk 0:00:03]} 53. Qf1 {[%clk 0:00:03]}  Rxd1 {[%clk 0:00:04]} 54. Qxd1 {[%clk 0:00:04]}  Rc4 {[%clk 0:00:04]} 0-1


[Site "https://www.chess.com"]

[Event "Titled Tuesday Blitz April 18 Early 2023"]
[White "Ivanchuk, Vasyl"]
[Black "Kukhmazov, Arsen"]
[WhiteFideId "14100010"]
[BlackFideId "24108260"]
[WhiteElo "2710"]
[BlackElo "2396"]
[Result "1-0"]
[Round "04"]
[TimeControl "180+2"]
[Date "2023.04.18"]
[WhiteClock "0:00:49"]
[BlackClock "0:00:06"]

1. d4 {[%clk 0:02:59]}  d5 {[%clk 0:03:00]} 2. c4 {[%clk 0:02:59]}  c6 {[%clk 0:03:00]} 3. Nf3 {[%clk 0:02:59]}  Nf6 {[%clk 0:03:01]} 4. e3 {[%clk 0:02:59]}  Bg4 {[%clk 0:03:01]} 5. h3 {[%clk 0:02:58]}  Bh5 {[%clk 0:03:01]} 6. cxd5 {[%clk 0:02:47]}  cxd5 {[%clk 0:03:02]} 7. Qb3 {[%clk 0:02:47]}  Qc7 {[%clk 0:02:58]} 8. Nc3 {[%clk 0:02:47]}  Bxf3 {[%clk 0:02:56]} 9. gxf3 {[%clk 0:02:47]}  Nc6 {[%clk 0:02:56]} 10. Nxd5 {[%clk 0:02:42]}  Nxd5 {[%clk 0:02:57]} 11. Qxd5 {[%clk 0:02:42]}  e6 {[%clk 0:02:56]} 12. Qb3 {[%clk 0:02:37]}  Bb4+ {[%clk 0:02:53]} 13. Kd1 {[%clk 0:02:32]}  Rc8 {[%clk 0:02:46]} 14. Bd3 {[%clk 0:02:31]}  O-O {[%clk 0:02:36]} 15. a3 {[%clk 0:02:24]}  Bd6 {[%clk 0:02:36]} 16. Bd2 {[%clk 0:02:24]}  Qe7 {[%clk 0:01:40]} 17. Rc1 {[%clk 0:02:21]}  Rc7 {[%clk 0:01:30]} 18. h4 {[%clk 0:02:06]}  Qf6 {[%clk 0:01:30]} 19. Ke2 {[%clk 0:02:05]}  Rfc8 {[%clk 0:01:24]} 20. h5 {[%clk 0:01:55]}  h6 {[%clk 0:01:16]} 21. Rc2 {[%clk 0:01:39]}  a6 {[%clk 0:01:05]} 22. Rhc1 {[%clk 0:01:12]}  Qh4 {[%clk 0:00:57]} 23. d5 {[%clk 0:01:10]}  Nd8 {[%clk 0:00:22]} 24. Ba5 {[%clk 0:00:55]}  Rxc2+ {[%clk 0:00:20]} 25. Rxc2 {[%clk 0:00:55]}  Rxc2+ {[%clk 0:00:06]} 26. Qxc2 {[%clk 0:00:55]}  exd5 {[%clk 0:00:07]} 27. Qc8 {[%clk 0:00:53]}  Be7 {[%clk 0:00:07]} 28. Qd7 {[%clk 0:00:52]}  b5 {[%clk 0:00:05]} 29. Bxd8 {[%clk 0:00:49]}  Bxd8 {[%clk 0:00:06]} 30. Qe8# {[%clk 0:00:49]} 1-0


[Site "https://www.chess.com"]

[Event "Titled Tuesday Blitz April 18 Early 2023"]
[White "Kramnik, Vladimir"]
[Black "Timofeev, Artyom"]
[WhiteFideId "4101588"]
[BlackFideId "4140419"]
[WhiteElo "2712"]
[BlackElo "2586"]
[Result "0-1"]
[Round "04"]
[TimeControl "180+2"]
[Date "2023.04.18"]
[WhiteClock "0:00:10"]
[BlackClock "0:01:17"]

1. e4 {[%clk 0:03:00]}  e5 {[%clk 0:02:57]} 2. Nf3 {[%clk 0:03:00]}  Nf6 {[%clk 0:02:57]} 3. Nxe5 {[%clk 0:02:59]}  d6 {[%clk 0:02:57]} 4. Nf3 {[%clk 0:03:00]}  Nxe4 {[%clk 0:02:56]} 5. d3 {[%clk 0:03:01]}  Nf6 {[%clk 0:02:55]} 6. d4 {[%clk 0:03:01]}  Be7 {[%clk 0:02:54]} 7. Bd3 {[%clk 0:03:01]}  O-O {[%clk 0:02:52]} 8. O-O {[%clk 0:03:01]}  Bg4 {[%clk 0:02:50]} 9. h3 {[%clk 0:02:59]}  Bh5 {[%clk 0:02:50]} 10. Re1 {[%clk 0:02:59]}  Re8 {[%clk 0:02:49]} 11. c4 {[%clk 0:02:54]}  Nc6 {[%clk 0:02:44]} 12. g4 {[%clk 0:02:53]}  Bg6 {[%clk 0:02:44]} 13. Bxg6 {[%clk 0:02:51]}  hxg6 {[%clk 0:02:43]} 14. d5 {[%clk 0:02:49]}  Nb8 {[%clk 0:02:39]} 15. Nc3 {[%clk 0:02:47]}  Nbd7 {[%clk 0:02:39]} 16. Bf4 {[%clk 0:02:42]}  a5 {[%clk 0:02:36]} 17. Nd4 {[%clk 0:02:35]}  Nc5 {[%clk 0:02:35]} 18. Qf3 {[%clk 0:02:31]}  Nfd7 {[%clk 0:02:29]} 19. Ndb5 {[%clk 0:02:30]}  Rc8 {[%clk 0:02:25]} 20. Kg2 {[%clk 0:02:02]}  Bf6 {[%clk 0:02:20]} 21. Rxe8+ {[%clk 0:01:57]}  Qxe8 {[%clk 0:02:19]} 22. g5 {[%clk 0:01:47]}  Bxc3 {[%clk 0:02:13]} 23. Nxc3 {[%clk 0:01:43]}  Ne5 {[%clk 0:02:06]} 24. Bxe5 {[%clk 0:01:28]}  Qxe5 {[%clk 0:02:06]} 25. h4 {[%clk 0:01:22]}  a4 {[%clk 0:01:58]} 26. Rh1 {[%clk 0:01:20]}  Re8 {[%clk 0:01:51]} 27. Rh3 {[%clk 0:01:12]}  Qd4 {[%clk 0:01:48]} 28. h5 {[%clk 0:01:02]}  Re5 {[%clk 0:01:43]} 29. hxg6 {[%clk 0:00:26]}  Rxg5+ {[%clk 0:01:42]} 30. Rg3 {[%clk 0:00:26]}  Rxg6 {[%clk 0:01:40]} 31. Rxg6 {[%clk 0:00:25]}  fxg6 {[%clk 0:01:40]} 32. Nb5 {[%clk 0:00:18]}  Qxc4 {[%clk 0:01:25]} 33. Nxc7 {[%clk 0:00:18]}  Nd3 {[%clk 0:01:25]} 34. Kg3 {[%clk 0:00:11]}  Ne5 {[%clk 0:01:18]} 35. Qc3 {[%clk 0:00:10]}  Qg4+ {[%clk 0:01:17]} 0-1


[Site "https://www.chess.com"]

[Event "Titled Tuesday Blitz April 18 Early 2023"]
[White "Mahdavi, Reza"]
[Black "Paravyan, David"]
[WhiteFideId "12595926"]
[BlackFideId "4194985"]
[WhiteElo "2357"]
[BlackElo "2563"]
[Result "1-0"]
[Round "04"]
[TimeControl "180+2"]
[Date "2023.04.18"]
[WhiteClock "0:01:16"]
[BlackClock "0:00:01"]

1. Nf3 {[%clk 0:03:00]}  Nf6 {[%clk 0:02:56]} 2. g3 {[%clk 0:03:01]}  c5 {[%clk 0:02:56]} 3. Bg2 {[%clk 0:03:01]}  Nc6 {[%clk 0:02:57]} 4. c4 {[%clk 0:02:59]}  d5 {[%clk 0:02:56]} 5. d4 {[%clk 0:02:56]}  dxc4 {[%clk 0:02:49]} 6. O-O {[%clk 0:02:57]}  cxd4 {[%clk 0:02:47]} 7. Qa4 {[%clk 0:02:54]}  Be6 {[%clk 0:02:33]} 8. Nxd4 {[%clk 0:02:47]}  Qxd4 {[%clk 0:02:34]} 9. Bxc6+ {[%clk 0:02:48]}  Bd7 {[%clk 0:02:35]} 10. Rd1 {[%clk 0:02:48]}  Qxd1+ {[%clk 0:02:24]} 11. Qxd1 {[%clk 0:02:49]}  Bxc6 {[%clk 0:02:24]} 12. Nd2 {[%clk 0:02:42]}  h5 {[%clk 0:02:19]} 13. h4 {[%clk 0:02:34]}  g5 {[%clk 0:01:54]} 14. hxg5 {[%clk 0:02:30]}  Ng4 {[%clk 0:01:51]} 15. Nxc4 {[%clk 0:02:26]}  Rd8 {[%clk 0:01:36]} 16. Qc2 {[%clk 0:02:24]}  h4 {[%clk 0:01:30]} 17. gxh4 {[%clk 0:01:59]}  Rxh4 {[%clk 0:01:08]} 18. f3 {[%clk 0:01:54]}  Rd4 {[%clk 0:00:11]} 19. Na5 {[%clk 0:01:45]}  Ne5 {[%clk 0:00:03]} 20. Be3 {[%clk 0:01:44]}  Rdg4+ {[%clk 0:00:02]} 21. fxg4 {[%clk 0:01:22]}  Rh1+ {[%clk 0:00:02]} 22. Kf2 {[%clk 0:01:22]}  Nxg4+ {[%clk 0:00:03]} 23. Kg3 {[%clk 0:01:23]}  Nxe3 {[%clk 0:00:04]} 24. Qd3 {[%clk 0:01:18]}  Rxa1 {[%clk 0:00:02]} 25. Qxe3 {[%clk 0:01:18]}  Rxa2 {[%clk 0:00:01]} 26. Qxa7 {[%clk 0:01:18]}  e6 {[%clk 0:00:01]} 27. Qa8+ {[%clk 0:01:16]}  Ke7 {[%clk 0:00:01]} 28. Nxc6+ {[%clk 0:01:16]} 1-0


[Site "https://www.chess.com"]